Cogmind - Beta 14 @@@ ROGUE MODE // 2024.11.23 @ 20:58:39 Player: skye Result: Destroyed by Y-45 Defender with Heavy Assault Rifle Performance ------------- Evolutions (2) 1000 Regions Visited (5) 1000 Robots Destroyed (53) 265 Value Destroyed (1470) 1470 Prototype IDs (24) 480 Alien Tech Used (0) 0 Bonus (404) 404 TOTAL SCORE: 4619 Bonus ------- High Alert Combat Kills 90 Follower Combat Kills 14 Aligned with FarCom 300 Cogmind --------- Core Integrity 0/550 Matter 248/300 Energy 136/150 System Corruption 3% Temperature Hot (249) Movement Walking (120) Location -8/Materials Parts ------- > --- POWER (1) -------- Light Angular Momentum Engine > --- PROPULSION (4) --- Carbon-fiber Leg Carbon-fiber Leg Carbon-fiber Leg Cesium-ion Thruster > --- UTILITY (4) ------ Medium Storage Unit Advanced ECM Suite Light Armor Plating Hacking Suite > --- WEAPON (2) ------- Particle Gun Enhanced Autogun > --- INVENTORY (10) --- Improved Ion Engine Light Nuclear Core Improved VTOL Module Improved VTOL Module Improved Heat Sink Improved Heat Sink Structural Scanner 0b10 Alert Chip Hacking Suite Hacking Suite Peak State ------------ > --- POWER ------------ Light Angular Momentum Engine > --- PROPULSION ------- Carbon-fiber Leg Carbon-fiber Leg Carbon-fiber Leg Cesium-ion Thruster > --- UTILITY ---------- Medium Storage Unit Advanced ECM Suite Light Armor Plating Hacking Suite > --- WEAPON ----------- Particle Gun Enhanced Autogun > --- INVENTORY -------- Improved Ion Engine Light Nuclear Core Improved VTOL Module Improved VTOL Module Improved Heat Sink Improved Heat Sink Structural Scanner 0b10 Alert Chip Hacking Suite Hacking Suite [Rating: 35] Favorites ----------- Power Light Ion Engine Engine Light Ion Engine Power Core Light Nuclear Core Propulsion Light Treads Treads Light Treads Leg Carbon-fiber Leg Wheel Wheel Flight Unit Cesium-ion Thruster Utility Medium Storage Unit Device Improved Heat Sink Storage Medium Storage Unit Processor Targeting Computer Hackware Hacking Suite Protection Core Shielding Weapon Light Assault Rifle Energy Gun Particle Gun Ballistic Gun Light Assault Rifle Special Weapon Welding Torch Build | -11 -10 -10 -10 -9 -8 ------- Run | Yrd Mat Min Exi Min Mat Slots Evolved 4 | . . . . . 4 Power . | . . . . . . Propulsion 2 | . . . . . 2 Utility 2 | . . . . . 2 Weapon . | . . . . . . Parts Attached 53 | . 12 8 1 . 32 Power 6 | . 1 1 . . 4 Engine 4 | . 1 . . . 3 Core 2 | . . 1 . . 1 Reactor . | . . . . . . Propulsion 20 | . 4 2 . . 14 Treads 9 | . 4 1 . . 4 Leg 7 | . . . . . 7 Wheel 2 | . . 1 . . 1 Hover . | . . . . . . Flight 2 | . . . . . 2 Utility 16 | . 4 1 1 . 10 Device 6 | . . 1 . . 5 Storage 3 | . 2 . . . 1 Processor 1 | . . . . . 1 Hackware 1 | . . . . . 1 Protection 5 | . 2 . 1 . 2 Artifact . | . . . . . . Weapon 11 | . 3 4 . . 4 Energy Gun 4 | . . 2 . . 2 Energy Cannon . | . . . . . . Ballistic Gun 6 | . 2 2 . . 2 Ballistic Cannon . | . . . . . . Launcher . | . . . . . . Special Weapon 1 | . 1 . . . . Impact Weapon . | . . . . . . Slashing Weapon . | . . . . . . Piercing Weapon . | . . . . . . Special Melee Weapon . | . . . . . . Unidentified Prototypes 1 | . . . . . 1 Parts Lost 18 | . 2 5 . . 11 Power 4 | . 1 2 . . 1 Propulsion 7 | . . 2 . . 5 Utility 4 | . . . . . 4 Weapon 3 | . 1 1 . . 1 Highest Loss Streak 6 | . 2 3 . . 6 To Critical Strikes . | . . . . . . Average Slot Usage (%) 87 | . 94 85 85 85 84 Engine 6 | . 13 . . . 7 Treads 15 | . 27 15 14 14 4 Leg 5 | . . . . . 17 Wheel 5 | . . 11 14 14 3 Device 3 | . . . 6 . 8 Storage 11 | . 14 14 14 14 7 Hackware 2 | . . . . . 8 Protection 11 | . 12 13 7 14 9 Energy Gun 8 | . 2 13 14 14 7 Ballistic Gun 14 | . 21 14 14 14 8 Peak Build Rating 35 | . 8 10 9 9 35 Average Rating 13 | . 7 8 8 9 24 On Entrance 7 | 6 6 8 8 9 9 Naked Turns . | . . . . . . Heaviest Build 39 | 11 21 19 15 15 39 Greatest Support 45 | 20 40 40 10 10 45 Greatest Overweight (x) 6 | . . 1 1 1 6 Average Overweight (x) . | . . . 1 1 . Largest Inventory Capacity 10 | . 10 10 10 10 10 Average Capacity 9 | . 9 10 10 10 8 Most Carried 10 | . 10 10 10 10 10 Average Carried 9 | . 9 9 9 10 7 Final Capacity 10 | 8 10 10 10 10 10 Final Carried 10 | 6 10 10 10 10 10 Class Distribution -------------------- 70% | Mutant 29% | Scavenger-Mutant Dominant Class ---------------- Mutant | -10/Materials Mutant | -10/Mines Mutant | -10/Exiles Mutant | -9/Mines Scavenger-Mutant | -8/Materials Resources | -11 -10 -10 -10 -9 -8 ----------- Run | Yrd Mat Min Exi Min Mat Matter Collected 1200 | 200 235 264 . . 501 Remotely . | . . . . . . Salvage Created 1769 | . 523 258 . . 988 Parts 123 | . 49 26 . . 48 Haulers Intercepted 1 | . 1 . . . . Recyclers Shooed 1 | . . . . . 1 Parts Field Recycled . | . . . . . . Retrieved Matter . | . . . . . . Parts Self-Destructed . | . . . . . . Prevented . | . . . . . . Kills | -11 -10 -10 -10 -9 -8 ------- Run | Yrd Mat Min Exi Min Mat Combat Hostiles Destroyed 45 | . 16 11 . . 18 Guns 40 | . 15 10 . . 15 AOE 4 | . 1 . . . 3 Classes Destroyed 9 | . 5 . . . 4 Builder 1 | . . . . . 1 Hauler 1 | . 1 . . . . Recycler 1 | . . . . . 1 Operator 3 | . 2 . . . 1 Watcher 2 | . 1 . . . 1 Swarmer 19 | . 9 8 . . 2 Grunt 23 | . 7 3 . . 13 Sentry 2 | . . . . . 2 Hunter 1 | . . . . . 1 Best Kill Streak 6 | . 6 4 . . 5 Combat Bots Only 6 | . 6 4 . . 5 Max Kills in Single Turn 4 | . 1 1 . . 4 Gunslinging 1 | . . . . . 1 Exploded 3 | . 1 . . . 3 Melee . | . . . . . . Uniques/NPCs Destroyed . | . . . . . . Combat | -11 -10 -10 -10 -9 -8 -------- Run | Yrd Mat Min Exi Min Mat Hostile Shots Fired 387 | . 119 54 . . 214 Missed 116 | . 32 15 . . 69 Damage Taken 3313 | . 820 447 . . 2046 Core 775 | . 182 40 . . 553 Absorbed by Shields . | . . . . . . Redirected to Shielding 73 | . 36 9 . . 28 Regen/Repaired (Parts) 185 | . 185 . . . . Core Remaining (%) 55 | 100 . . . 11 . Volleys Fired 198 | . 70 32 . . 96 Largest 2 | . 2 2 . . 2 Hottest 90 | . 60 85 . . 90 Shots Fired 328 | . 122 63 . . 143 Gun 328 | . 122 63 . . 143 Cannon . | . . . . . . Launcher . | . . . . . . Special . | . . . . . . Kinetic 220 | . 103 38 . . 79 Thermal 89 | . . 25 . . 64 Explosive . | . . . . . . Electromagnetic 19 | . 19 . . . . Robot Hit Streak 17 | . 11 10 . . 17 Robot Miss Streak 5 | . 5 3 . . 4 Penetration Max . | . . . . . . Secondary Targets 8 | . 4 1 . . 3 Max Gunslinging Chain 1 | . 1 1 . . 1 Shots Hit Robots 210 | . 72 39 . . 99 Core Hits 104 | . 36 17 . . 51 Critical Kills . | . . . . . . Critical Parts Destroyed 2 | . 1 . . . 1 Critical Strikes 4 | . 1 1 . . 2 Burn 2 | . . 1 . . 1 Destroy 2 | . 1 . . . 1 Melee Attacks . | . . . . . . Impact . | . . . . . . Slashing . | . . . . . . Piercing . | . . . . . . Sneak Attacks . | . . . . . . Combat Hostiles . | . . . . . . Follow-up Attacks . | . . . . . . Damage Inflicted 2960 | . 691 425 . . 1844 Guns 2558 | . 650 421 . . 1487 Cannons . | . . . . . . Explosions 398 | . 41 . . . 357 Melee . | . . . . . . Ramming 4 | . . 4 . . . Kinetic 1554 | . 473 146 . . 935 Thermal 923 | . 41 275 . . 607 Explosive . | . . . . . . Electromagnetic 479 | . 177 . . . 302 Impact . | . . . . . . Slashing . | . . . . . . Piercing . | . . . . . . Highest Corruption 3 | . . . . . 3 Average Corruption 2 | . . . . . 2 Corruption Purged . | . . . . . . Corruption Blocked . | . . . . . . Effects 8 | . . . . . 8 Message Errors 2 | . . . . . 2 Matter Fused 1 | . . . . . 1 Heat Flow Errors 2 | . . . . . 2 Parts Rejected 1 | . . . . . 1 Data Loss (major) 1 | . . . . . 1 Misfires 1 | . . . . . 1 Overload Shots . | . . . . . . Overflow Damage . | . . . . . . Projectiles . | . . . . . . Explosions . | . . . . . . Melee . | . . . . . . Knockbacks . | . . . . . . Impact . | . . . . . . Kinetic . | . . . . . . Secondary . | . . . . . . Self-Inflicted Damage 24 | . . 2 . . 22 Shots 1 | . . . . . 1 Rammed 1 | . . 1 . . . Targets Rammed 1 | . . 1 . . . Kicked . | . . . . . . Crushed . | . . . . . . Highest Temperature 261 | . 142 118 . . 261 Average Temperature 46 | . 43 36 . . 52 Received Heat Transfer 1380 | . 237 225 . . 918 Siege Activations . | . . . . . . Robots Corrupted . | . . . . . . Combat Hostiles . | . . . . . . Parts Fried . | . . . . . . Impact Corruptions . | . . . . . . Robots Melted 1 | . . 1 . . . Combat Hostiles 1 | . . 1 . . . Parts Melted 1 | . . . . . 1 Heat Transferred 2270 | . 50 814 . . 1406 Parts Sabotaged . | . . . . . . Parts Stolen . | . . . . . . Parts Stripped . | . . . . . . Power Chain Reactions 2 | . 1 . . . 1 Alert | -11 -10 -10 -10 -9 -8 ------- Run | Yrd Mat Min Exi Min Mat Peak Influence 500 | . 302 240 . . 500 Initial 78 | . . 78 . . . Average 200 | . 153 195 . . 288 Maximum Alert Level 2 | . 1 1 . . 2 Low Security (%) 47 | . 70 21 . 100 33 Level 1 45 | . 29 78 . . 46 Level 2 6 | . . . . . 19 Level 3 . | . . . . . . Level 4 . | . . . . . . Level 5 . | . . . . . . High Security . | . . . . . . Max Security . | . . . . . . Squads Dispatched 6 | . 3 . . . 3 Investigation 4 | . 2 . . . 2 Extermination . | . . . . . . Reinforcement 2 | . 1 . . . 1 Assault . | . . . . . . Garrison . | . . . . . . Intercept . | . . . . . . Searches Triggered . | . . . . . . Construction Impeded . | . . . . . . Haulers Reinforced . | . . . . . . Active Scanning Responses . | . . . . . . Cargo Convoy Interrupts . | . . . . . . Stealth | -11 -10 -10 -10 -9 -8 --------- Run | Yrd Mat Min Exi Min Mat Distress Signals 8 | . 3 . . . 5 Communications Jammed . | . . . . . . Distress Signals . | . . . . . . Times Spotted 78 | . 24 16 . . 38 Peak Tracking Total 8 | . 8 5 . . 8 Tactical Retreats 8 | . 1 3 . . 4 Traps | -11 -10 -10 -10 -9 -8 ------- Run | Yrd Mat Min Exi Min Mat Traps Triggered 5 | . 1 . . . 4 Indirectly . | . . . . . . Trap Hack Attempts . | . . . . . . Triggered . | . . . . . . Disarmed . | . . . . . . Reprogrammed . | . . . . . . Reused . | . . . . . . Traps Extracted . | . . . . . . Installed . | . . . . . . Triggered . | . . . . . . Machines | -11 -10 -10 -10 -9 -8 ---------- Run | Yrd Mat Min Exi Min Mat Machines Disabled 5 | . . . . . 5 Max in Single Turn 2 | . . . . . 2 Garrison Access 1 | . . . . . 1 Machines Repaired . | . . . . . . Machines Dismantled . | . . . . . . Machines Sabotaged . | . . . . . . Overloaded Fab Kills . | . . . . . . Hacking | -11 -10 -10 -10 -9 -8 --------- Run | Yrd Mat Min Exi Min Mat Machines Accessed 14 | . 6 . 1 . 7 Terminals 10 | . 5 . . . 5 Fabricators . | . . . . . . Repair Stations 1 | . 1 . . . . Recycling Units 1 | . . . . . 1 Scanalyzers . | . . . . . . Garrison Access 1 | . . . . . 1 Total Hacks 37 | . 18 . 1 . 18 Successful 24 | . 14 . 1 . 9 Failed 13 | . 4 . . . 9 Catastrophic 1 | . . . . . 1 Database Lockouts . | . . . . . . Manual 32 | . 14 . 1 . 17 Terminals 30 | . 14 . . . 16 Fabricators . | . . . . . . Repair Stations 4 | . 4 . . . . Recycling Units 1 | . . . . . 1 Scanalyzers . | . . . . . . Garrison Access 1 | . . . . . 1 Terminal Hacks 9 | . 5 . 1 . 3 Part Schematic 3 | . 3 . . . . Branch Access Points 1 | . 1 . . . . Terminal Index 2 | . 1 . . . 1 Unreport Threat 1 | . . . . . 1 Recall Reinforcements 1 | . . . . . 1 Derelict Proto ID Bank 1 | . . . 1 . . Fabricator Hacks . | . . . . . . Repair Station Hacks 4 | . 4 . . . . Scan Component 2 | . 2 . . . . Repair 2 | . 2 . . . . Recycling Unit Hacks . | . . . . . . Scanalyzer . | . . . . . . Garrison Access Hacks 1 | . . . . . 1 Seal Access 1 | . . . . . 1 Unauthorized Hacks 10 | . 5 . . . 5 Terminals 9 | . 5 . . . 4 Botnet 9 | . 5 . . . 4 Fabricators . | . . . . . . Repair Stations . | . . . . . . Recycling Units 1 | . . . . . 1 Reject 1 | . . . . . 1 Scanalyzers . | . . . . . . Garrison Access . | . . . . . . Data Cores Recovered . | . . . . . . Used . | . . . . . . Hacking Detections 11 | . 6 . . . 5 Full Trace Events 1 | . 1 . . . . Feedback Events . | . . . . . . Feedback Blocked . | . . . . . . Robot Schematics Acquired . | . . . . . . Robots Built . | . . . . . . Authchips . | . . . . . . Time . | . . . . . . Total Robot Build Rating . | . . . . . . Part Schematics Acquired 3 | . 3 . . . . Parts Built . | . . . . . . Authchips . | . . . . . . Time . | . . . . . . Total Part Build Rating . | . . . . . . Parts Repaired 2 | . 2 . . . . Time 52 | . 52 . . . . Parts Recycled . | . . . . . . Recycled Matter . | . . . . . . Retrieved Matter . | . . . . . . Retrieved Components . | . . . . . . Parts Scanalyzed . | . . . . . . Part Schematics Acquired . | . . . . . . Parts Damaged . | . . . . . . Bothacking | -11 -10 -10 -10 -9 -8 ------------ Run | Yrd Mat Min Exi Min Mat Used RIF Installer . | . . . . . . Robots Hacked . | . . . . . . Non-combat . | . . . . . . Combat . | . . . . . . Robot Hacks Applied . | . . . . . . Relay Couplers Released . | . . . . . . Fabnet Peak Effective % . | . . . . . . Robots Rewired . | . . . . . . Allies Hacked . | . . . . . . Hacks Repelled . | . . . . . . Allies | -11 -10 -10 -10 -9 -8 -------- Run | Yrd Mat Min Exi Min Mat Total Allies 5 | . . 5 . . . Largest Group 5 | . . 5 4 3 3 Highest-Rated Group 81 | . . 81 71 40 40 Highest-Rated Ally 31 | . . 31 31 16 16 Total Orders . | . . . . . . Ally Attacks 15 | . . 5 . . 10 Total Damage 129 | . . 40 . . 89 Kills 3 | . . 1 . . 2 Allies Corrupted . | . . . . . . Allies Melted . | . . . . . . Intel | -11 -10 -10 -10 -9 -8 ------- Run | Yrd Mat Min Exi Min Mat Robot Analysis Total . | . . . . . . Derelict Logs Recovered 2 | . . 1 . 1 . Drone Launches . | . . . . . . Drone Recoveries . | . . . . . . Exploration | -11 -10 -10 -10 -9 -8 ------------- Run | Yrd Mat Min Exi Min Mat Turns Passed 3303 | . 1067 733 221 198 1084 Spaces Moved 2212 | 1 501 589 209 203 709 Core 43 | . . . . . 43 Treads 559 | . 494 40 . . 25 Legs 493 | 1 7 . . . 485 Wheels 1117 | . . 549 209 203 156 Hover . | . . . . . . Flight . | . . . . . . Fastest Speed 50 | 120 120 95 95 95 50 Average Speed 116 | 120 159 99 95 95 112 Slowest Speed 350 | 120 160 160 95 95 350 Overloaded Moves . | . . . . . . Propulsion Burnouts . | . . . . . . Robots Hopped . | . . . . . . Cave-ins Triggered . | . . . . . . Exploration Rate (%) 53 | 2 78 94 60 42 44 Regions Visited 5 Branch Regions 3 Pre-discovered Areas 2 | . . 1 . 1 . Known Exits Taken 1 | . 1 . . . . Unknown Exits Taken 4 | 1 . 1 1 1 . Scrap Searched 1 | . . 1 . . . Spaces Dug . | . . . . . . Terrain Destroyed 8 | . 8 . . . . Melee . | . . . . . . Projectile . | . . . . . . AOE 8 | . 8 . . . . Terrain Rammed . | . . . . . . Walls Destroyed . | . . . . . . Machines Disabled . | . . . . . . Actions | -11 -10 -10 -10 -9 -8 --------- Run | Yrd Mat Min Exi Min Mat Total 2681 | . 675 681 231 208 886 Wait 141 | . 63 40 20 6 12 Move 2207 | . 500 588 208 202 709 Hop . | . . . . . . Pick Up 34 | . 14 3 1 . 16 Fast Attach 25 | . 6 1 . . 18 Attach 13 | . 4 3 . . 6 Detach 4 | . 3 . . . 1 Swap 15 | . 2 4 1 . 8 Drop 37 | . 13 3 1 . 20 Fire 198 | . 70 32 . . 96 Melee . | . . . . . . Ram 1 | . . 1 . . . Kick . | . . . . . . Crush . | . . . . . . Escape Stasis . | . . . . . . Rewire 6 | . . 6 . . . Trap . | . . . . . . Miscellaneous . | . . . . . . Route ------- -11/Scrapyard -10/Materials (discovered 4 exits: [*Mat x2] / *Min / [*Sub]) -10/Mines (discovered 3 exits: [*Mat x2] / *Exi) -10/Exiles -9/Mines -8/Materials History --------- Turn | Location | Event 1 | -11/Scrapyard | Discovered new exit (range 0) 1 | -11/Scrapyard | Entered Materials 194 | -10/Materials | Discovered new exit (range 15) 306 | -10/Materials | Build established: Mutant 353 | -10/Materials | Core integrity fell below 50% 489 | -10/Materials | Discovered new exit (range 12) 539 | -10/Materials | Repaired Lgt. Treads 569 | -10/Materials | Repaired Lgt. Treads 653 | -10/Materials | Identified exit to Mines 904 | -10/Materials | Discovered new exit (range 9) 1058 | -10/Materials | Discovered new exit (range 8) 1068 | -10/Materials | Entered Mines 1081 | -10/Mines | Core integrity fell below 20% 1121 | -10/Mines | Lost 3 parts (1p1n1w) 1263 | -10/Mines | Assisted by bots powering up and referring to "LRC-V3" 1300 | -10/Mines | Found a hidden stash of uninstalled traps 1375 | -10/Mines | Learned location of Zion (-7) 1496 | -10/Mines | Discovered new exit (range 5) 1535 | -10/Mines | Discovered new exit (range 3) 1790 | -10/Mines | Deemed a non-threat by the Exiles lab entrance 1790 | -10/Mines | Discovered new exit (range 6) 1801 | -10/Mines | Entered Exiles 1801 | -10/Exiles | Accompanied by 4 allies 1823 | -10/Exiles | Met 8R-AWN 1831 | -10/Exiles | Led the pair of lost Derelicts to a safe place 1840 | -10/Exiles | Met EX-HEX 1868 | -10/Exiles | Met EX-BIN 1879 | -10/Exiles | Aligned with FarCom system 1880 | -10/Exiles | Given EX-Vault access code 1904 | -10/Exiles | Opened EX-Vault 1911 | -10/Exiles | Found 0b10 Alert Chip 1930 | -10/Exiles | Warned to stay clear of 0b10 Research branches 1959 | -10/Exiles | Met EX-DEC 1993 | -10/Exiles | Discovered new exit (range 10) 2022 | -10/Exiles | Left Exiles lab with 0b10 Alert Chip 2022 | -10/Exiles | Entered Mines 2022 | -9/Mines | Accompanied by 3 allies 2203 | -9/Mines | Discovered new exit (range 5) 2220 | -9/Mines | Entered Materials 2220 | -8/Materials | Accompanied by 3 allies 2220 | -8/Materials | Evolved 4 slots: Propulsion x2, Utility x2 2305 | -8/Materials | Lost 3 allies 2467 | -8/Materials | Core integrity fell below 50% 2488 | -8/Materials | Lost 6 parts (1p3n2u) 2505 | -8/Materials | Core integrity fell below 20% 2830 | -8/Materials | Build established: Scavenger-Mutant 3304 | -8/Materials | Destroyed by Y-45 Defender with Heavy Assault Rifle Last Messages --------------- 03275_ Acquired 19 matter. 03277_ K-01 Serf cleans the Pressure Siphon. 03281_ System corrupted: Cesium-ion Thruster rejected. 03283_ R-06 Scavenger collects Cesium-ion Thruster. 03283_ R-06 Scavenger destroyed. 03284_ K-01 Serf cleans the Pressure Siphon. 03286_ Acquired Cesium-ion Thruster. 03290_ R-06 Scavenger collects Lgt. Ion Engine. 03292_ R-06 Scavenger collects Imp. Heat Sink. 03296_ R-06 Scavenger collects Sml. Storage Unit. 03296_ K-01 Serf collects debris. 03299_ R-06 Scavenger collects Terrain Scan Processor. 03300_ R-06 Scavenger inserts Imp. Heat Sink into recycling unit. 03300_ K-01 Serf collects debris. 03301_ Recycling unit begins recycling process. Map ----- +----------------------------------------------------+ | ????????????????# """ ##[#"Y"################?? | | ????????????????# #== * *=[ #?? | | ????????????????# "" +**=!=[=* #?? | | ????????????????# S"" #!!"""=* #?? | | ????????????????# "" #==""" ############?? | | ????????????????# # =""" #????????????? | | ?????????????############# #????????????? | | ?????????????# # !!!#????????????? | | ?????????????# # !!!#????????????? | | ?????????????#""" """ ! # """ !!!#????????????? | | ?????????????#"R """ # """ #????????????? | | ?????????????#""" """ # """ #????????????? | | ?????????????# "" # """ #????????????? | | ?????????????# # #????????????? | | ????????############+##### #????????????? | | ????? % #????????????? | | ????? #????????????? | | ????? """ """ % % #????????????? | | ?????????"""" """"" % ###+######??????????? | | ??????????""" """" # %###########? | | ??????????""" """"" # ## #? | | ?????????""" """% # ## #? | | ????? !!= m# = ## #? | | ????? !!!k #######+## #? | | ????? """ w% !=! # #? | | ?????????"""" ! %@ Y +% #? | | ??????????""" =r %####### # ## | | ??????????""" ! # ## # ## | | ??????????"" k + ## #######+#### | | ?????????? |! # ""# ###### #### | | ????????? k !! # Y"# | | ???????? #? ""# T | | ???????? #? # ##### | | ????????? w ##############??########???# # | | ??????????? ?????????################### # | | ???????????? ?????????? | | ???????????????????????########### | | ???????????????????????# # ##########+## | | ???????????????????????#! """ # # # # | | ???????????????????????# """ # + # """ # | | ???????????????????????# "" + # #! """ ## | | ???????????????????????# " # # # """ #? | | ???????????????????????# # # # #? | | ???????????????????????# # # #! ! #? | | ???????????????????????# # # ########? | | ???????????????????????########+## + #???????? | | ?????????????????????????????? # #???????? | | ??????????????????????????????# ##########???????? | | ?????????????????????????????? #????????????????? | | ??????????????????????????????##?????????????????? | +----------------------------------------------------+ Best States ------------- Heat Dissipation 45 Energy Generation 18 Energy Capacity 265 Matter Stores 300 Matter Capacity 300 Sight Range 16 Terrain Scan Density 10 ECM Strength 2 Armor Coverage 375 Resistance: KI 30 Core Shielding 20 Evasion (%) 55 Targeting Accuracy 5 Recoil Reduction 2 Offensive Hacking 10 Item Schematics ----------------- Core Shielding | -10/Materials | Hacked Wheel | -10/Materials | Hacked Sml. Storage Unit | -10/Materials | Hacked Robot Schematics ------------------ None Fabricated ------------ Nothing Alien Tech Used ----------------- None Achievements -------------- None Challenges ------------ None Game ------ Seed SalvagingLightLaser Manual? 0 Play Time 00:28:43 Cumulative 58.8 hours Start 2024.11.23 @ 20:32:48 End 2024.11.23 @ 20:58:39 Sessions 1 Manual Loads 0 Difficulty Rogue Special Mode None Game No. 83 Rogue 39 Adventurer 44 Explorer 0 Win Type - Total 0 Types 0/0/0/0/0/0/0/0/0 Lore% 18 Gallery% 44 Achievement% 32 Wizard Run 0 Options --------- Layout 1 ASCII 0 Keyboard 1 Movement Vi Keybinds 0 Fullscreen 1 Font 24/Terminus Map View 50x40 Zoom Use 0% Tactical HUD 1 Map Filters NONE Filters NONE Steam 1 RUN: 89c6045b-c8e4-49a0-8e95-909fa04bec1b